bitfinex/quotes_ETHUSD_20241003
["timestamp","ask_amount","ask_price","bid_price","bid_amount"]
[1727953278355,1.24,2374.1,2373.4,0.842684]
[1727953278562,1.24,2374.1,2373.8,4.21257]
[1727953278767,9.66414,2374.2,2373.8,4.21257]
[1727953278964,9.66413,2374.2,2373.7,4.21275]
[1727953279284,4.21223,2374.1,2373.7,4.21275]
[1727953280346,4.21223,2374.1,2373.7,8.42551]
[1727953280543,4.21231,2374.0,2373.6,4.21297]
[1727953280745,4.21214,2374.1,2373.7,4.2128]
[1727953281042,4.21214,2374.1,2373.6,8.42587]
[1727953281272,8.42436,2374.1,2373.6,8.42587]
[1727953281437,2.286713,2374.2,2373.7,4.21276]
[1727953281643,2.286713,2374.2,2373.8,4.21253]
[1727953281644,6.498673,2374.2,2373.8,4.21253]
[1727953281883,6.498673,2374.2,2373.7,4.21279]
[1727953281884,4.21215,2374.1,2373.7,4.21279]
[1727953282093,5.45196,2374.2,2373.7,4.21272]
[1727953282401,1.24,2374.2,2374.1,4.21212]
[1727953282679,1.24,2374.2,2374.1,4.709062]
[1727953282890,1.24,2374.2,2374.0,0.7573]
[1727953283100,5.4521,2374.2,2373.8,4.21263]
[1727953283245,5.4521,2374.2,2373.7,4.2128]
[1727953283444,1.24,2374.2,2373.7,1.222864]
[1727953283643,1.24,2374.2,2374.1,4.97542]
[1727953284325,1.24,2374.2,2374.1,5.00510001]
[1727953285730,1.24,2374.2,2373.9,4.21233]
[1727953285932,1.24,2374.2,2374.1,4.21212]
[1727953286487,1.24,2374.2,2373.8,7.99228]
[1727953286488,5.45195,2374.2,2373.8,7.99228]
[1727953286906,5.45195,2374.2,2373.8,7.21258]
[1727953287827,1.24,2374.2,2373.8,7.2125]
[1727953288049,6.2663,2374.3,2373.9,4.2124]
[1727953288526,1.24,2374.3,2374.0,4.21228]
[1727953289422,5.45179,2374.3,2373.8,8.06337492]
[1727953289598,5.45179,2374.3,2373.9,4.21246]
[1727953290994,1.24,2374.3,2374.2,4.21194]
[1727953293105,1.24,2374.3,2374.1,0.7579]
[1727953293292,1.24,2374.3,2373.9,8.42476]
[1727953293293,5.45183,2374.3,2373.9,8.42476]
[1727953293491,5.45183,2374.3,2373.9,4.21238]
[1727953293723,5.45183,2374.3,2373.9,8.42471]
[1727953293928,5.45183,2374.3,2373.9,4.21233]
[1727953294534,5.45183,2374.3,2374.0,4.21229]
[1727953295031,5.45183,2374.3,2373.9,4.21243]
[1727953295243,4.21196,2374.2,2373.6,5.02481]
[1727953295391,4.21196,2374.2,2372.8,4.27376529]
[1727953295392,4.21196,2374.2,2373.4,4.21327]
[1727953295393,4.21256,2373.9,2373.4,4.21327]
[1727953295592,4.21278,2373.8,2373.4,4.21327]
[1727953296797,4.21278,2373.8,2373.2,0.8119]
[1727953296798,4.21278,2373.8,2373.3,4.2135]
[1727953296999,1.24213172,2373.8,2373.5,4.21318]
[1727953297228,1.24213172,2373.8,2373.4,8.42653]
[1727953297457,1.24,2374.3,2373.5,0.03675253]
[1727953297599,4.22366,2374.4,2374.0,4.21214]
[1727953297600,2.0464,2374.4,2374.0,4.21214]
[1727953297798,2.0464,2374.4,2374.0,8.42436]
[1727953297998,6.25802,2374.4,2374.0,4.21214]
[1727953298237,6.25802,2374.4,2374.0,8.42435]
[1727953298409,6.25802,2374.4,2374.0,4.21214]
[1727953299736,10.4697,2374.4,2374.0,4.21214]
[1727953300223,4.21178,2374.3,2373.9,4.21244]
[1727953300427,4.21178,2374.3,2373.9,5.054936]
[1727953300625,4.21178,2374.3,2373.5,4.2131]
[1727953300626,4.96906,2373.9,2373.5,4.2131]
[1727953300857,4.96906,2373.9,2373.3,0.8312]
[1727953300858,4.21265,2373.8,2373.3,0.8312]
[1727953301019,4.21291,2373.7,2373.3,4.21351]
[1727953301622,4.21291,2373.7,2373.3,4.21347]
[1727953301826,4.21268,2373.8,2373.3,8.42689]
[1727953302139,4.21268,2373.8,2373.3,4.21342]
[1727953303013,4.21268,2373.8,2373.3,8.42685]
[1727953303216,4.21268,2373.8,2373.3,4.21342]
[1727953303910,8.42542,2373.8,2373.3,4.21342]
[1727953304608,5.130872,2373.8,2373.2,7.2978221]
[1727953305020,4.21285,2373.7,2373.3,4.21347]
[1727953305551,5.130932,2373.8,2373.3,4.21347]
[1727953305904,5.130932,2373.8,2373.3,4.29773214]
[1727953306857,4.2129,2373.7,2373.3,4.29773214]
[1727953307910,4.2129,2373.7,2373.3,4.21347]
[1727953308306,4.21283,2373.7,2373.3,4.21342]
[1727953308629,4.21283,2373.7,2372.6,4.71314434]
[1727953308630,4.91556883,2373.5,2372.5,0.8134]
[1727953308949,4.21425,2372.9,2372.5,0.8134]
[1727953309246,4.21425,2372.9,2372.1,0.8048]
[1727953309247,9.34014288,2372.9,2372.1,0.8048]
[1727953309809,9.34014288,2372.9,2371.9,4.21601]
[1727953310011,9.34014288,2372.9,2371.8,0.8048]
[1727953310244,9.34014288,2372.9,2371.8,5.02089]
[1727953310841,9.34014288,2372.9,2371.8,0.8048]
[1727953311703,9.34014288,2372.9,2371.8,5.02092]
[1727953312319,9.34014288,2372.9,2372.0,4.21584]
[1727953312523,5.00575,2372.9,2372.1,0.08430924]
[1727953312720,4.21411,2373.0,2372.6,4.21477]
[1727953312967,4.21411,2373.0,2372.6,0.8034]
[1727953313177,4.21425,2372.9,2372.6,0.8034]
[1727953313474,4.21425,2372.9,2372.2,0.8037]
[1727953313475,9.90431883,2372.9,2372.2,0.8037]
[1727953313631,9.90431883,2372.9,2371.8,5.01981]
[1727953314032,9.90431883,2372.9,2371.8,0.8037]
[1727953314225,13.45431883,2372.9,2371.8,0.8037]
[1727953314453,15.22116171,2372.9,2371.8,5.01987]
[1727953314652,14.67116171,2372.9,2372.0,4.21577]
[1727953314967,14.67116171,2372.9,2372.0,4.30007645]
[1727953315169,14.67116171,2372.9,2371.8,5.01979]
[1727953316075,14.67116171,2372.9,2371.9,4.21598]
[1727953316672,14.67116171,2372.9,2371.8,5.01979]
[1727953317171,14.67116171,2372.9,2371.9,4.30016935]
[1727953320139,14.67116171,2372.9,2371.8,0.8037]
[1727953320451,14.67116171,2372.9,2371.8,5.0199]
[1727953320653,15.22116171,2372.9,2371.8,0.8037]
[1727953320850,4.21603,2371.9,2371.5,4.97843]
[1727953321236,8.43216,2371.9,2371.5,0.7617]
[1727953321668,4.21603,2371.9,2371.5,0.7617]
[1727953321919,0.7625,2372.2,2371.5,0.7617]
[1727953321920,4.97806,2372.2,2371.6,4.21646]
[1727953322179,4.21579,2372.1,2371.6,9.41817364]
[1727953322378,4.21585,2372.0,2371.6,5.135936]
[1727953322540,4.21569,2372.1,2371.6,9.41811364]
[1727953322744,4.21569,2372.1,2371.6,5.135886]
[1727953322984,4.21569,2372.1,2371.6,5.20166364]
[1727953323286,12.36746,2372.5,2371.6,5.20166364]
[1727953323287,4.21585,2372.0,2371.6,0.919486]
[1727953323494,4.21585,2372.0,2371.5,4.9784]
[1727953323495,4.2161,2371.9,2371.5,4.9784]
[1727953324491,4.2161,2371.9,2371.5,4.97837]
[1727953324649,4.21552,2372.2,2371.7,4.21636]
[1727953324992,4.21552,2372.2,2371.1,3.0]
[1727953324993,4.2162,2371.8,2371.4,4.638488]
[1727953325285,4.2162,2371.8,2371.4,4.97849]
[1727953325783,8.1525,2372.5,2371.5,4.2167]
[1727953325784,4.21605,2371.9,2371.5,4.2167]
[1727953325944,4.21586,2372.0,2371.6,4.21653]
[1727953326150,4.21586,2372.0,2371.6,5.14445564]
[1727953326341,4.21586,2372.0,2371.6,0.92792564]
[1727953326657,4.21613,2371.9,2371.5,4.2167]
[1727953326856,4.21613,2371.9,2371.5,8.43336]
[1727953327084,4.21586,2372.0,2371.6,4.27776815]
[1727953327275,4.21556,2372.2,2371.6,0.06129815]
[1727953327471,4.21569,2372.1,2371.7,0.825]
[1727953327645,4.21568,2372.1,2371.7,0.825]
[1727953327843,4.21552,2372.2,2371.7,5.04129]
[1727953328175,4.21552,2372.2,2371.7,5.12560829]
[1727953328374,4.21567,2372.1,2371.8,0.98541819]
[1727953328850,4.21567,2372.1,2371.7,0.825]
[1727953328851,4.21563,2372.2,2371.7,0.825]
[1727953329052,4.21652,2371.7,2371.4,0.7884]
[1727953329387,4.21652,2371.7,2370.9,0.7884]
[1727953329388,4.21713,2371.3,2370.9,0.7884]
[1727953329599,4.21733,2371.2,2370.9,0.7884]
[1727953330245,4.21746,2371.1,2370.9,0.7884]
[1727953330551,4.21745,2371.1,2370.7,4.21815]
[1727953330780,4.21729,2371.2,2370.7,4.21808]
[1727953331078,4.21763,2371.0,2370.6,4.21822]
[1727953331246,5.00586,2371.5,2370.5,4.98688]
[1727953331247,4.00125264,2371.1,2370.5,4.98688]
[1727953331452,4.2179,2370.9,2370.5,4.98688]
[1727953331787,5.46157526,2370.9,2370.5,0.7684]
[1727953331990,4.21828,2370.7,2370.3,0.7847]
[1727953332484,8.43653,2370.7,2370.3,0.7847]
[1727953332843,4.21825,2370.7,2370.3,0.7847]
[1727953333278,4.21825,2370.7,2370.3,5.00349]
[1727953334895,4.21836,2370.6,2370.3,0.7847]
[1727953335091,4.21825,2370.7,2370.3,0.7847]
[1727953335290,8.43653,2370.7,2370.3,0.7847]
[1727953335451,4.2179,2370.9,2370.3,5.00357]
[1727953335651,4.2179,2370.9,2370.5,4.2185]
[1727953335883,4.2179,2370.9,2370.3,5.00357]
[1727953336091,4.21816,2370.7,2370.3,9.22226]
[1727953336393,4.21816,2370.7,2370.3,5.00348]
[1727953336957,4.21812,2370.8,2370.3,5.00354]
[1727953337170,5.2277938,2370.7,2370.3,5.00354]
[1727953337457,5.2277938,2370.7,2370.3,0.7847]
[1727953338392,5.2277938,2370.7,2370.3,5.00357]
[1727953338967,5.2277938,2370.7,2370.1,4.21917]
[1727953338968,5.2277938,2370.7,2370.1,0.761]
[1727953339174,5.2277938,2370.7,2370.2,4.21889]
[1727953339371,5.2277938,2370.7,2370.2,8.4378]
[1727953339560,5.2277938,2370.7,2370.2,4.21889]
[1727953339967,1.0096138,2370.7,2370.4,4.21867]
[1727953340170,3.7751,2371.0,2370.5,4.99864]
[1727953340171,3.0,2371.0,2370.5,4.99864]
[1727953340369,3.0,2371.0,2370.6,4.21832]
[1727953340652,3.0,2371.0,2370.5,1.280064]
[1727953340653,3.0,2371.0,2370.5,0.7802]
[1727953340852,4.21789,2370.9,2370.5,4.9987]
[1727953341096,11.60756,2371.1,2370.6,4.2183]
[1727953341097,4.21766,2371.0,2370.6,4.2183]
[1727953341306,8.4354,2371.0,2370.6,4.2183]
[1727953341591,4.21766,2371.0,2370.5,4.99868]
[1727953342059,4.21766,2371.0,2370.6,4.21826]
[1727953342259,4.21781,2370.9,2370.5,5.50701425]
[1727953342457,4.21766,2371.0,2370.5,5.50701425]
[1727953342774,4.21746,2371.1,2370.6,4.21823]
[1727953343000,1.24,2371.4,2371.1,0.7786]
[1727953343296,0.797,2371.6,2371.2,4.21718]
[1727953343297,1.24,2371.6,2371.2,4.21718]
[1727953343496,1.24,2371.7,2371.3,4.217]
[1727953343899,5.45641,2371.7,2371.3,4.217]
[1727953345318,1.24,2371.7,2371.4,4.21689]
[1727953345473,1.24,2371.7,2371.5,5.03391]
[1727953346158,1.24,2371.7,2371.5,0.8172]
[1727953346406,5.45604,2371.9,2371.5,0.8172]
[1727953346589,5.45604,2371.9,2371.5,5.54569593]
[1727953346755,1.24,2371.9,2371.5,5.54569593]
[1727953346962,1.24,2372.1,2371.8,4.21609]
[1727953347272,1.24,2372.1,2372.0,4.21585]
[1727953347596,7.39,2372.7,2372.0,5.00625]
[1727953347597,5.45514,2372.4,2372.0,5.00625]
[1727953347797,5.45514,2372.4,2372.0,0.7904]
[1727953348007,9.67044,2372.4,2372.0,0.7904]
[1727953348361,4.21532,2372.3,2372.0,0.7904]
[1727953348895,4.21532,2372.3,2371.8,9.26058]
[1727953348896,8.43076,2372.3,2371.8,9.26058]
[1727953349098,8.43076,2372.3,2371.8,5.0444]
[1727953349270,8.43076,2372.3,2371.8,9.26052]
[1727953349465,4.21532,2372.3,2371.8,9.26052]
[1727953349961,4.21532,2372.3,2371.9,4.21591]
[1727953350405,1.24,2372.4,2372.0,4.21572]
[1727953350702,1.24,2372.4,2372.1,4.21565]
[1727953351201,5.45514,2372.4,2372.0,4.21578]
[1727953351506,1.24,2372.4,2372.1,4.2156]
[1727953352013,5.45522,2372.4,2372.0,4.21578]
[1727953352212,5.45522,2372.4,2371.9,0.926031]
[1727953352213,5.45522,2372.4,2371.9,4.21599]
[1727953352878,4.21537,2372.3,2371.9,4.21599]
[1727953353278,4.21537,2372.3,2371.8,0.8283]
[1727953353279,4.21558,2372.2,2371.8,0.8283]
[1727953353614,4.21558,2372.2,2371.6,4.99816]
[1727953353615,4.21579,2372.1,2371.6,4.99816]
[1727953353825,5.0189,2372.2,2371.6,0.7817]
[1727953353826,4.21586,2372.0,2371.6,0.7817]
[1727953354111,0.8034,2372.2,2371.6,0.7817]
[1727953354112,4.21604,2371.9,2371.6,0.7817]
[1727953354678,4.21589,2372.0,2371.6,4.99824]
[1727953355018,4.21604,2371.9,2371.6,0.7817]
[1727953355918,0.8034,2372.2,2371.6,0.7817]
[1727953355919,8.43147,2372.1,2371.6,4.21646]
[1727953356126,5.139187,2372.1,2371.6,4.21644]
[1727953356290,4.21587,2372.0,2371.6,4.21644]
[1727953357225,1.24,2372.2,2372.1,4.21567]
[1727953357514,1.24,2372.2,2372.0,0.7858]
[1727953357718,1.24,2372.2,2372.0,5.00152]
[1727953357922,1.24,2372.2,2372.1,4.21567]
[1727953359417,1.24,2372.2,2372.0,5.00152]
[1727953359809,1.24,2372.2,2372.1,4.21567]
[1727953360448,1.24,2372.2,2372.0,5.00152]
[1727953360758,1.24,2372.2,2371.2,6.34508957]
[1727953360759,4.2157,2372.1,2371.6,4.21644]
[1727953360904,2.0172,2372.2,2371.5,8.02005]
[1727953360905,4.83921,2372.0,2371.5,8.02005]
[1727953361239,4.21603,2371.9,2371.5,5.02005]
[1727953361468,5.45627,2371.8,2371.4,4.21686]
[1727953361602,5.45627,2371.8,2371.3,4.21708]
[1727953361603,4.21641,2371.7,2371.3,4.21708]
[1727953361802,10.20989,2371.7,2371.2,4.21719]
[1727953362037,1.24,2371.4,2371.2,4.21719]
[1727953362216,0.62329,2372.0,2371.3,4.96929]
[1727953362217,1.24,2371.6,2371.3,4.96929]
[1727953362955,1.24,2371.6,2371.4,4.21682]
[1727953363120,1.24,2371.6,2371.4,4.21684]
[1727953363361,1.24,2371.6,2371.5,4.21674]
[1727953365895,1.24,2371.6,2371.4,4.21684]
[1727953366046,1.24,2371.6,2371.3,0.7522]
[1727953366396,1.24,2371.6,2371.3,4.96918]
[1727953366949,1.24,2371.6,2371.4,4.21691]
[1727953367399,1.24,2371.6,2371.3,4.96918]
[1727953367573,1.24,2371.6,2371.3,0.7522]
[1727953367778,5.45665,2371.6,2371.1,5.00451]
[1727953367974,5.45665,2371.6,2371.2,4.21719]
[1727953368306,6.506227,2371.6,2371.2,4.21719]
[1727953370222,6.506227,2371.6,2371.2,4.21722]
[1727953370416,6.506227,2371.6,2371.3,4.21699]
[1727953370417,2.289577,2371.6,2371.3,4.21699]
[1727953370707,2.289577,2371.6,2371.2,4.21722]
[1727953370917,2.289577,2371.6,2371.2,8.43441]
[1727953371313,2.289577,2371.6,2371.2,4.21719]
[1727953371607,6.506137,2371.6,2371.2,4.21719]
[1727953372913,1.24,2371.6,2370.9,4.21777]
[1727953373086,1.24,2371.6,2371.5,4.21674]
[1727953373277,1.24,2371.6,2371.5,4.30106415]
[1727953373780,1.24,2371.6,2371.5,4.21674]
[1727953373981,7.39,2372.0,2371.6,4.21654]
[1727953373982,1.24,2371.8,2371.6,4.21654]
[1727953374913,1.24,2371.8,2371.6,4.21655]
[1727953375068,1.24,2371.8,2371.5,4.21659]
[1727953375598,1.24,2371.8,2371.5,4.21669]
[1727953376787,1.24,2371.8,2371.6,4.21654]
[1727953377578,1.24,2371.8,2371.5,4.2167]
[1727953377795,1.24,2371.8,2371.3,0.8303]
[1727953378004,1.24,2371.8,2371.1,7.21733]
[1727953378005,4.2168,2371.5,2371.1,4.21737]
[1727953378514,4.2168,2371.5,2371.2,4.21727]
[1727953378696,4.2166,2371.6,2371.2,4.21727]
[1727953378871,4.843488,2371.6,2371.2,4.21727]
[1727953380407,4.843488,2371.6,2371.0,5.0013]
[1727953380712,0.626888,2371.6,2371.1,4.21735]
[1727953380909,4.843468,2371.6,2371.1,4.21735]
[1727953381069,4.843468,2371.6,2371.2,4.21726]
[1727953381970,4.843468,2371.6,2371.1,4.21735]
[1727953382173,0.823,2371.4,2370.8,4.21795]
[1727953382436,0.823,2371.4,2370.7,4.21812]
[1727953382437,4.21752,2371.1,2370.7,4.21812]
[1727953382627,4.21738,2371.2,2370.7,8.43616]
[1727953382783,4.21711,2371.3,2370.6,5.00834]
[1727953382985,4.21728,2371.2,2370.8,4.21783]
[1727953383180,5.881791,2371.3,2370.7,4.21812]
[1727953383181,4.21745,2371.1,2370.7,4.21812]
[1727953383374,4.21745,2371.1,2370.6,5.00839]
[1727953383611,4.21763,2371.0,2370.6,5.00839]
[1727953384184,4.21747,2371.1,2370.7,4.21813]
[1727953384775,5.2274101,2371.1,2370.6,5.00839]
[1727953385077,5.2274101,2371.1,2370.3,0.759]
[1727953385078,0.7752,2371.0,2370.3,0.759]
[1727953385288,0.7752,2371.0,2370.8,4.21791]
[1727953385604,0.7752,2371.0,2370.8,4.21789]
[1727953386154,4.98972,2371.3,2370.9,4.2178]
[1727953386280,0.7726,2371.3,2371.0,4.21761]
[1727953386823,4.98969,2371.3,2371.0,4.21761]
[1727953387331,4.98969,2371.3,2370.9,4.21777]
[1727953387615,9.20687,2371.3,2370.9,4.21777]
[1727953388119,7.39,2371.5,2371.1,0.7569]
[1727953388434,7.39,2371.5,2371.4,4.21691]
[1727953388605,5.03471,2371.8,2371.2,4.21721]
[1727953388606,5.45635,2371.8,2371.2,4.21721]
[1727953388941,4.21657,2371.6,2371.2,4.21721]
[1727953389075,4.21657,2371.6,2371.2,5.136367]
[1727953389274,4.21649,2371.7,2371.2,5.136367]
[1727953389275,4.21649,2371.7,2371.3,4.21709]
[1727953389507,5.45624,2371.8,2371.3,4.25993014]
[1727953389710,5.45624,2371.8,2371.4,4.30117309]
[1727953389711,1.24,2371.8,2371.4,4.30117309]
[1727953389872,1.24,2371.8,2371.4,4.8232061]
[1727953390087,1.24,2371.8,2371.5,4.21659]
[1727953390522,5.45621,2371.8,2371.4,4.73887301]
[1727953390820,1.24,2371.8,2371.5,4.30099063]
[1727953391516,5.45627,2371.8,2371.4,0.60635922]
[1727953391677,1.24,2371.8,2371.5,4.21672]
[1727953392223,1.24,2371.8,2371.4,4.73891301]
[1727953392433,1.24,2371.8,2371.1,0.7569]
[1727953392434,4.21639,2371.7,2371.1,0.7569]
[1727953392714,4.21679,2371.5,2371.1,0.7569]
[1727953392912,4.21679,2371.5,2371.1,4.97427]
[1727953393281,4.21679,2371.5,2371.0,4.21748]
[1727953393282,4.21691,2371.4,2371.0,4.21761]
[1727953393929,0.7795,2371.5,2371.0,4.21761]
[1727953394138,4.21659,2371.6,2371.2,4.21712]
[1727953395247,4.21659,2371.6,2371.1,4.21737]
[1727953395248,0.7595,2371.7,2371.1,4.21729]
[1727953395427,4.21682,2371.5,2371.1,8.43464]
[1727953395627,4.21682,2371.5,2371.1,9.40858937]
[1727953395836,1.24,2371.8,2371.1,9.40858937]
[1727953395837,1.24,2371.8,2371.4,0.7543]
[1727953396141,1.24,2371.8,2371.5,0.04823329]
[1727953396310,1.24,2371.8,2371.4,0.7543]
[1727953396311,5.45634,2371.8,2371.4,0.7543]
[1727953396499,5.45634,2371.8,2371.4,0.80405994]
[1727953397332,1.24,2371.8,2371.4,5.02096994]
[1727953397636,1.24,2371.8,2371.4,5.52296693]
[1727953397938,1.24,2371.8,2371.5,4.21666]
[1727953398143,1.24,2371.8,2371.6,4.21655]
[1727953398297,1.24,2371.8,2371.4,9.69006699]
[1727953398500,1.24,2371.8,2371.5,0.07839983]
[1727953399022,1.24,2371.8,2371.5,5.27185651]
[1727953399211,1.24,2371.8,2371.6,4.21648]
[1727953399613,1.24,2371.8,2371.5,5.19348668]
[1727953400399,1.24,2371.8,2371.5,1.02629967]
[1727953400701,1.24,2371.9,2371.6,4.26612349]
[1727953400940,1.24,2371.9,2371.6,4.21648]
[1727953401856,5.45609,2371.9,2371.5,4.21668]
[1727953402212,0.7575,2371.8,2371.2,0.55]
[1727953402418,1.24,2371.9,2371.7,4.21628]
[1727953402634,1.24,2371.9,2371.8,4.2162]
[1727953403044,1.24,2371.9,2371.7,4.21634]
[1727953403462,1.24,2371.9,2371.8,4.2162]
[1727953403663,5.45521,2372.4,2372.0,4.21582]
[1727953404078,4.21533,2372.3,2371.9,4.216]
[1727953404735,4.21533,2372.3,2371.9,4.30031233]
[1727953405260,1.24,2372.3,2372.0,4.21582]
[1727953405459,1.24,2372.3,2372.0,5.06752685]
[1727953407654,1.24,2372.3,2372.0,5.06745685]
[1727953407861,1.24,2372.3,2372.1,4.21566]
[1727953409109,1.24,2372.3,2372.2,4.21549]
[1727953409595,1.24,2372.6,2372.4,4.21514]
[1727953409765,5.45483,2372.6,2372.2,4.21532]
[1727953409970,5.45483,2372.6,2372.1,0.919881]
[1727953409971,0.809,2372.4,2372.1,4.21558]
[1727953410282,5.02421,2372.4,2372.0,4.21578]
[1727953410463,0.809,2372.4,2372.0,4.21578]
[1727953410979,5.02415,2372.4,2372.0,4.21578]
[1727953411176,5.02417,2372.4,2372.0,4.21578]
[1727953411384,5.02417,2372.4,2372.1,4.21561]
[1727953411385,0.809,2372.4,2372.1,4.21561]
[1727953411908,0.809,2372.4,2372.0,4.21575]
[1727953412116,5.02415,2372.4,2372.0,4.21575]
[1727953412404,2.049,2372.4,2372.0,4.21575]
[1727953412591,2.049,2372.4,2372.1,4.21564]
[1727953414908,4.21557,2372.2,2371.8,4.21608]
[1727953415203,4.21539,2372.3,2371.9,4.21599]
[1727953416165,4.21551,2372.2,2371.8,4.21617]
[1727953416933,4.21534,2372.3,2371.9,4.21587]
[1727953417129,7.3665743,2372.4,2372.0,4.2158]
[1727953417427,4.21532,2372.3,2372.0,4.2158]
[1727953417746,4.21532,2372.3,2371.9,4.21593]
[1727953418119,4.21532,2372.3,2371.9,8.43189]
[1727953418321,5.45532,2372.3,2371.9,4.21593]
[1727953418536,1.24,2372.3,2372.2,4.21549]
[1727953419556,1.24,2372.3,2371.9,4.21589]
[1727953419763,1.24,2372.3,2372.0,4.21582]
[1727953420351,5.45533,2372.3,2371.9,4.21595]
[1727953420663,0.782,2372.2,2371.9,4.21595]
[1727953420864,0.782,2372.2,2371.8,8.43216]
[1727953420865,6.23757,2372.2,2371.8,8.43216]
[1727953421166,2.022,2372.2,2371.9,4.21591]
[1727953421372,1.24,2372.2,2372.0,4.21569]
[1727953421572,1.24,2372.2,2372.1,4.21567]
[1727953421772,7.39,2372.7,2372.2,4.21549]
[1727953421773,1.24,2372.3,2372.2,4.21549]
[1727953421932,1.24,2372.3,2372.2,5.563345]
[1727953422367,1.24,2372.3,2372.2,5.64763773]
[1727953422679,1.24,2372.3,2372.2,8.64763773]
[1727953422828,1.24,2372.9,2372.8,4.21443]
[1727953423326,1.24,2372.9,2372.8,4.98513]
[1727953424669,1.24,2372.9,2372.8,5.905099]
[1727953425303,1.24,2373.2,2372.9,4.2142]
[1727953425506,1.24,2373.2,2373.0,4.21406]
[1727953425691,1.24,2373.2,2373.1,4.21389]
[1727953425896,1.24,2373.2,2373.0,4.21406]
[1727953426053,1.24,2373.2,2373.1,4.21389]
[1727953426788,1.24,2373.2,2373.0,4.21406]
[1727953426988,1.24,2373.2,2372.9,4.21423]
[1727953427213,1.24,2373.2,2373.0,4.21398]
[1727953427576,1.24,2373.2,2373.0,4.21405]
[1727953428092,1.24,2373.2,2373.0,8.42802]
[1727953428698,1.24,2373.2,2373.0,4.21397]
[1727953428980,1.24,2373.2,2373.1,4.21389]
[1727953429363,1.24,2373.2,2373.1,4.89134714]
[1727953430349,1.24,2373.3,2373.1,4.21389]
[1727953430547,1.24,2373.3,2373.2,4.21371]
[1727953430769,1.24,2373.3,2373.1,4.21389]
[1727953431019,1.24,2373.3,2372.8,0.7707]
[1727953431277,1.24,2373.3,2373.2,4.21371]
[1727953432143,1.24,2373.3,2373.1,4.21373]
[1727953432343,1.24,2373.3,2373.1,8.42755]
[1727953432564,1.24,2373.3,2373.2,4.21371]
[1727953432773,1.24,2373.3,2372.9,4.21413]
[1727953432973,1.24,2373.3,2373.0,4.21393]
[1727953433286,1.24,2373.3,2372.8,0.7707]
[1727953433287,1.24,2373.3,2373.1,4.21377]
[1727953433482,1.24,2373.3,2373.2,4.21371]
[1727953433710,1.24,2373.3,2373.2,5.06477455]
[1727953433933,1.24,2373.3,2373.2,8.06477455]
[1727953435225,1.24,2373.3,2373.2,8.61477455]
[1727953435367,1.24,2373.3,2373.2,8.53051]
[1727953435567,1.24,2373.3,2373.2,10.24679717]
[1727953436690,1.24,2373.9,2373.8,4.21265]
[1727953437011,1.24,2374.1,2373.8,4.21265]
[1727953437221,1.24,2374.1,2373.7,4.2128]
[1727953437511,4.21233,2374.0,2373.6,4.21286]
[1727953437882,1.24,2374.1,2373.7,5.05062176]
[1727953438193,1.24,2374.1,2373.8,4.21261]
[1727953439113,5.45213,2374.1,2373.6,4.21292]
[1727953439316,5.45213,2374.1,2373.5,0.7537]
[1727953439317,1.24,2374.1,2373.7,4.21273]
[1727953439521,1.24,2374.1,2373.8,4.21256]
[1727953440464,1.24,2374.1,2373.9,4.21245]
[1727953440867,1.24,2374.1,2374.0,4.29653248]
[1727953443734,1.24,2374.1,2373.8,4.21263]
[1727953443940,0.7627,2374.0,2373.7,4.21275]
[1727953444230,4.21274,2373.8,2373.4,4.2132]
[1727953444389,0.7627,2374.0,2373.2,5.92988717]
[1727953444390,4.98169,2373.6,2373.2,5.92992717]
[1727953444592,1.24,2373.5,2373.2,5.92992717]
[1727953444902,1.24,2373.5,2373.2,1.71628717]
[1727953444903,5.4532,2373.5,2373.2,1.71628717]
[1727953445120,5.4532,2373.5,2373.1,4.635187]
[1727953445121,5.4532,2373.5,2373.1,4.21381]
[1727953445307,5.4532,2373.5,2372.9,8.21136471]
[1727953445308,4.21361,2373.3,2372.9,4.21415]
[1727953445490,1.24,2373.5,2373.2,4.21369]
[1727953445846,1.24,2373.5,2373.0,0.08427351]
[1727953445847,0.8219,2373.4,2372.6,0.789]
[1727953446138,0.8219,2373.4,2372.0,9.17815102]
[1727953446139,4.214,2373.1,2372.5,4.21482]
[1727953446333,4.21399,2373.1,2372.5,8.42965]
[1727953446635,4.21399,2373.1,2372.6,4.21477]
[1727953446796,4.21407,2373.0,2372.5,5.53640647]
[1727953446990,4.21399,2373.1,2372.6,4.21477]
[1727953447209,4.21399,2373.1,2372.6,4.29905526]
[1727953447408,6.27526,2373.4,2372.9,4.21409]
[1727953447608,6.27526,2373.4,2372.6,4.08149997]
[1727953447609,4.21362,2373.3,2372.7,5.19813617]
[1727953447853,4.21362,2373.3,2372.3,0.789]
[1727953447854,4.21438,2372.9,2372.3,0.789]
[1727953448005,4.21438,2372.9,2371.8,4.91899366]
[1727953448006,1.24,2372.8,2372.4,4.21508]
[1727953448343,1.24,2372.8,2372.3,4.2153]
[1727953448497,1.24,2372.8,2372.6,4.21461]
[1727953448701,17.12899366,2374.0,2372.7,5.76717403]
[1727953448702,1.24,2373.3,2372.7,5.76717403]
[1727953449032,9.332787,2373.9,2373.5,4.21308]